bitfinex-derivatives/quotes_BTCF0:USTF0_20210104
["timestamp","ask_amount","ask_price","bid_price","bid_amount"]
[1609748627497,4.5344,32246.0,32233.0,0.14033567]
[1609748627698,4.5344,32246.0,32233.0,0.26575567]
[1609748628799,4.5344,32246.0,32233.0,0.12542]
[1609748628997,0.12801,32259.0,32233.0,0.12542]
[1609748629198,4.0235,32241.0,32233.0,0.12542]
[1609748629597,4.0235,32241.0,32226.0,0.15237]
[1609748629598,0.14033567,32234.0,32226.0,0.15237]
[1609748630002,3.7613,32230.0,32226.0,0.15237]
[1609748630198,3.7613,32230.0,32215.0,0.1771]
[1609748630397,0.14033567,32234.0,32197.0,4.49]
[1609748630398,0.14033567,32234.0,32200.0,0.1771]
[1609748630598,3.5078,32220.0,32200.0,0.31086]
[1609748631399,3.62401,32220.0,32200.0,0.31086]
[1609748631599,3.62401,32220.0,32211.0,0.14033567]
[1609748631801,0.11621,32220.0,32211.0,0.14033567]
[1609748633403,0.09982,32228.0,32211.0,0.14033567]
[1609748633603,0.09982,32228.0,32227.0,0.14033567]
[1609748635605,0.24015567,32228.0,32227.0,0.14033567]
[1609748636003,0.24015567,32228.0,32210.0,0.10022]
[1609748636404,0.692,32227.0,32210.0,0.10022]
[1609748636604,3.6448,32225.0,32210.0,0.10022]
[1609748637005,3.6448,32225.0,32200.0,0.31086]
[1609748637507,3.6448,32225.0,32217.0,0.14033567]
[1609748638308,0.0921,32224.0,32217.0,0.14033567]
[1609748638909,0.0921,32224.0,32200.0,0.31086]
[1609748639110,3.6448,32225.0,32200.0,0.31055118]
[1609748639312,3.6448,32225.0,32201.0,0.1771]
[1609748639512,3.6448,32225.0,32207.0,0.14033567]
[1609748639712,0.2951,32243.0,32207.0,0.14033567]
[1609748639912,4.9195,32211.0,32207.0,0.14033567]
[1609748640113,4.9195,32211.0,32201.0,0.1771]
[1609748641519,0.14033567,32202.0,32201.0,0.1771]
[1609748643223,0.76723567,32202.0,32201.0,0.1771]
[1609748643820,0.76723567,32202.0,32200.0,0.09366]
[1609748644021,0.14033567,32202.0,32191.0,0.14033567]
[1609748645522,0.14033567,32192.0,32191.0,0.14033567]
[1609748646724,0.23383567,32192.0,32191.0,0.14033567]
[1609748646924,0.23383567,32192.0,32167.0,0.2744]
[1609748647122,0.23383567,32192.0,32177.0,4.9053]
[1609748647523,0.0935,32192.0,32183.0,0.14033567]
[1609748647826,0.0935,32192.0,32183.0,0.30152567]
[1609748648024,0.0938,32191.0,32183.0,0.30152567]
[1609748648426,0.0938,32191.0,32183.0,0.16119]
[1609748648627,0.13696,32206.0,32183.0,0.16119]
[1609748649225,4.7169,32193.0,32183.0,0.16119]
[1609748649625,0.14033567,32184.0,32183.0,0.16119]
[1609748650025,0.67673567,32184.0,32183.0,0.16119]
[1609748650428,0.14033567,32184.0,32183.0,0.16119]
[1609748650826,0.0936,32188.0,32183.0,0.16119]
[1609748651626,0.14033567,32206.0,32187.0,0.14033567]
[1609748653228,0.14033567,32206.0,32187.0,0.82743567]
[1609748653630,0.14033567,32206.0,32184.0,0.1771]
[1609748653631,0.14033567,32206.0,32205.0,0.14033567]
[1609748653829,0.0924,32219.0,32205.0,0.14033567]
[1609748654029,0.0921,32215.0,32205.0,0.14033567]
[1609748655634,0.03017,32216.0,32214.0,0.14033567]
[1609748656233,0.2988,32254.0,32214.0,0.30134567]
[1609748656834,0.2988,32254.0,32221.0,5.0588]
[1609748657236,0.0929,32253.0,32221.0,5.0588]
[1609748657436,0.21105,32253.0,32221.0,5.17032]
[1609748657637,0.21105,32253.0,32239.0,0.14033567]
[1609748659238,0.11815,32253.0,32239.0,0.14033567]
[1609748659638,0.14033567,32240.0,32232.0,0.14033567]
[1609748660039,0.14033567,32240.0,32228.0,0.12267]
[1609748660742,0.14033567,32240.0,32221.0,0.11152]
[1609748661741,0.13212,32245.0,32222.0,0.14033567]
[1609748663643,0.13212,32245.0,32226.0,0.14033567]
[1609748665042,0.11815,32253.0,32226.0,0.14033567]
[1609748665242,0.2988,32254.0,32226.0,0.14033567]
[1609748665643,0.2988,32254.0,32232.0,0.14033567]
[1609748666644,0.2988,32254.0,32226.0,3.59]
[1609748666843,0.40784,32254.0,32226.0,3.59]
[1609748667544,0.40784,32254.0,32221.0,0.11152]
[1609748667744,0.40784,32254.0,32223.0,0.14033567]
[1609748668346,0.40784,32254.0,32225.0,4.7963]
[1609748670045,0.40784,32254.0,32216.0,0.13812]
[1609748671851,0.14033567,32217.0,32216.0,0.13812]
[1609748672650,0.14033567,32217.0,32206.0,3.6076]
[1609748673753,0.14177,32223.0,32206.0,3.6076]
[1609748674155,0.14033567,32207.0,32206.0,3.6076]
[1609748675157,0.14033567,32207.0,32206.0,3.3558]
[1609748675356,0.14033567,32207.0,32190.0,0.10937]
[1609748676160,0.14033567,32191.0,32190.0,0.10937]
[1609748677659,0.12534,32208.0,32190.0,0.10937]
[1609748678060,0.12534,32208.0,32193.0,3.8869]
[1609748678260,0.12534,32208.0,32199.0,0.14033567]
[1609748679561,0.2985,32222.0,32199.0,0.14033567]
[1609748679761,0.10635,32236.0,32199.0,0.14033567]
[1609748680161,0.2735,32242.0,32215.0,0.14033567]
[1609748681362,0.2735,32242.0,32210.0,0.13395]
[1609748681562,0.42157,32242.0,32210.0,0.13395]
[1609748681762,0.42157,32242.0,32198.0,0.12597]
[1609748682164,0.42157,32242.0,32206.0,0.14033567]
[1609748683567,0.42157,32242.0,32198.0,0.12597]
[1609748683966,0.42157,32242.0,32197.0,3.8536]
[1609748684166,0.14033567,32198.0,32197.0,3.99393567]
[1609748684566,0.14033567,32198.0,32197.0,0.14033567]
[1609748686269,0.14033567,32198.0,32186.0,3.6173]
[1609748688276,0.14482,32208.0,32187.0,0.14033567]
[1609748688474,0.14482,32208.0,32187.0,0.25844567]
[1609748689775,5.0578,32231.0,32187.0,0.25844567]
[1609748690276,0.14033567,32188.0,32187.0,0.25844567]
[1609748690475,0.14033567,32188.0,32187.0,0.11811]
[1609748693485,0.14033567,32188.0,32177.0,0.14033567]
[1609748694287,0.14033567,32178.0,32177.0,0.14033567]
[1609748696388,0.12602,32205.0,32177.0,0.14033567]
[1609748696592,0.2797,32208.0,32177.0,0.28923567]
[1609748696791,0.2797,32208.0,32180.0,5.0548]
[1609748697691,0.2797,32208.0,32177.0,0.28923567]
[1609748697892,0.39039,32208.0,32177.0,0.28923567]
[1609748698291,0.39039,32208.0,32187.0,0.14033567]
[1609748700392,0.14033567,32188.0,32187.0,0.14033567]
[1609748701392,0.14033567,32188.0,32177.0,0.1489]
[1609748701591,0.14033567,32188.0,32171.0,0.1771]
[1609748701892,0.14033567,32188.0,32152.0,0.1771]
[1609748702291,0.12643,32197.0,32152.0,0.1771]
[1609748702491,0.12643,32197.0,32152.0,0.29807]
[1609748704296,0.12643,32197.0,32169.0,0.14033567]
[1609748704695,0.12643,32197.0,32169.0,0.26671567]
[1609748705696,0.5853,32197.0,32169.0,0.26671567]
[1609748706297,0.14033567,32170.0,32169.0,0.14033567]
[1609748706497,0.25696567,32170.0,32169.0,0.14033567]
[1609748709201,0.25696567,32170.0,32152.0,0.29807]
[1609748709602,0.25696567,32170.0,32152.0,0.12097]
[1609748710001,0.25696567,32170.0,32139.0,5.2015]
[1609748710402,0.11663,32170.0,32157.0,0.14033567]
[1609748711504,0.11862,32177.0,32157.0,0.14033567]
[1609748712404,0.11862,32177.0,32161.0,0.14033567]
[1609748714005,0.2866,32180.0,32161.0,0.14033567]
[1609748714307,4.723,32205.0,32161.0,0.14033567]
[1609748714507,0.2932,32204.0,32174.0,0.14033567]
[1609748714906,0.2932,32204.0,32176.0,3.8264]
[1609748716508,0.2932,32204.0,32186.0,0.14033567]
[1609748716709,2.43919934,32216.0,32186.0,0.14033567]
[1609748716908,2.43919934,32216.0,32196.0,5.0352]
[1609748717509,2.43772419,32217.0,32186.0,0.14033567]
[1609748717709,0.15214,32216.0,32204.0,3.8386]
[1609748717912,0.15214,32216.0,32186.0,0.27521567]
[1609748718109,0.15214,32216.0,32210.0,4.4884]
[1609748718511,0.14033567,32211.0,32210.0,4.4884]
[1609748719913,0.14033567,32211.0,32210.0,3.9884]
[1609748720513,0.2965,32234.0,32210.0,3.9884]
[1609748721114,0.2965,32234.0,32207.0,0.14033567]
[1609748721313,0.44695,32234.0,32214.0,4.9423]
[1609748722515,0.44695,32234.0,32217.0,0.14033567]
[1609748724516,0.14033567,32218.0,32217.0,0.14033567]
[1609748725117,0.14033567,32218.0,32204.0,3.5741]
[1609748726515,0.15413,32220.0,32204.0,3.5741]
[1609748726516,0.14033567,32205.0,32204.0,3.5741]
[1609748726716,0.28181567,32205.0,32204.0,3.5741]
[1609748728117,0.28181567,32205.0,32196.0,0.14033567]
[1609748728317,0.15413,32220.0,32196.0,0.14033567]
[1609748728517,0.14645,32211.0,32196.0,0.26539567]
[1609748728718,0.14645,32211.0,32196.0,0.12506]
[1609748729120,0.14645,32211.0,32210.0,0.14033567]
[1609748729521,0.14033567,32216.0,32210.0,0.14033567]
[1609748729720,0.15413,32220.0,32210.0,0.14033567]
[1609748730120,0.44695,32234.0,32210.0,0.14033567]
[1609748731221,0.44695,32234.0,32220.0,0.14033567]
[1609748731621,0.15045,32234.0,32220.0,0.14033567]
[1609748731822,0.2701,32246.0,32220.0,0.14033567]
[1609748732425,2.76463882,32251.0,32220.0,0.14033567]
[1609748733126,2.76463882,32251.0,32224.0,0.14033567]
[1609748733326,0.2894,32251.0,32224.0,0.14033567]
[1609748735226,0.2894,32251.0,32235.0,0.14033567]
[1609748735826,2.47930607,32260.0,32235.0,0.14033567]
[1609748736227,2.48233145,32264.0,32235.0,0.14033567]
[1609748737126,0.14033567,32241.0,32240.0,0.14033567]
[1609748737327,2.48233145,32264.0,32248.0,4.72]
[1609748737526,2.4755697,32265.0,32248.0,4.72]
[1609748738127,0.273,32282.0,32248.0,4.72]
[1609748738128,2.48243289,32280.0,32248.0,4.72]
[1609748738628,0.273,32282.0,32248.0,4.72]
[1609748739129,0.273,32282.0,32272.0,0.14033567]
[1609748739530,0.273,32282.0,32248.0,4.72]
[1609748739729,0.39499,32282.0,32248.0,4.72]
[1609748741131,0.39499,32282.0,32260.0,0.14033567]
[1609748741730,0.39499,32282.0,32265.0,4.5791]
[1609748743134,0.14033567,32266.0,32265.0,4.5791]
[1609748743533,0.29173567,32266.0,32260.0,0.14033567]
[1609748743834,0.29173567,32266.0,32248.0,3.5916]
[1609748745133,0.1514,32266.0,32252.0,0.14033567]
[1609748745533,0.1514,32266.0,32248.0,3.5916]
[1609748745934,0.1514,32266.0,32236.0,0.14498]
[1609748746134,0.1514,32266.0,32230.0,4.5535]
[1609748747135,2.60818366,32266.0,32230.0,4.5535]
[1609748747336,0.14033567,32231.0,32227.0,0.14033567]
[1609748747536,0.27479567,32231.0,32227.0,0.14033567]
[1609748749436,0.13446,32231.0,32227.0,0.14033567]
[1609748751439,0.14175,32235.0,32227.0,0.14033567]
[1609748751639,0.14175,32235.0,32230.0,4.0372]
[1609748752442,0.2882,32257.0,32230.0,4.0372]
[1609748752641,0.2882,32257.0,32230.0,4.15836]
[1609748753241,0.2882,32257.0,32246.0,0.14033567]
[1609748754643,0.2882,32257.0,32249.0,5.1568]
[1609748755244,0.14033567,32250.0,32249.0,5.1568]
[1609748755644,0.24591567,32250.0,32249.0,5.1568]
[1609748757348,0.24591567,32250.0,32246.0,0.14033567]
[1609748759250,0.24591567,32250.0,32240.0,5.2008]
[1609748759651,0.24591567,32250.0,32223.0,0.13225]
[1609748759851,0.24591567,32250.0,32202.0,0.287]
[1609748759852,0.24591567,32250.0,32229.0,4.8573]
[1609748761452,0.10558,32250.0,32232.0,0.14033567]
[1609748761654,2.44854687,32264.0,32232.0,0.14033567]
[1609748763054,2.4496068,32262.0,32232.0,0.14033567]
[1609748763453,0.23791567,32233.0,32232.0,0.14033567]
[1609748766455,0.33131567,32233.0,32232.0,0.14033567]
[1609748766655,0.23791567,32233.0,32232.0,0.14033567]
[1609748768157,0.09758,32233.0,32232.0,0.14033567]
[1609748768359,0.09758,32233.0,32232.0,5.05123567]
[1609748768559,0.11435,32237.0,32232.0,0.14033567]
[1609748769160,0.11435,32237.0,32236.0,3.8084]
[1609748769361,0.11435,32237.0,32236.0,3.94873567]
[1609748769759,0.14033567,32248.0,32236.0,3.94873567]
[1609748771363,0.14033567,32248.0,32247.0,0.14033567]
[1609748771562,0.14033567,32248.0,32247.0,0.79583567]
[1609748772863,0.13495,32262.0,32247.0,0.79583567]
[1609748773063,0.2874,32278.0,32247.0,0.79583567]
[1609748773464,0.2874,32278.0,32262.0,0.5123]
[1609748775469,0.14033567,32263.0,32262.0,0.5123]
[1609748775867,0.24582567,32263.0,32262.0,0.5123]
[1609748781974,0.24582567,32263.0,32262.0,4.7232]
[1609748782576,0.24582567,32263.0,32259.0,0.14033567]
[1609748783777,0.24582567,32263.0,32262.0,3.6411]
[1609748789083,0.24582567,32263.0,32259.0,0.14033567]
[1609748792686,0.24582567,32263.0,32250.0,4.9797]
[1609748793487,0.24582567,32263.0,32250.0,5.12003567]
[1609748793488,0.14033567,32251.0,32250.0,5.12003567]
[1609748795093,0.14033567,32251.0,32250.0,4.9797]
[1609748796192,0.14033567,32251.0,32241.0,0.14033567]
[1609748796796,0.24268567,32251.0,32241.0,0.14033567]
[1609748797599,0.26200567,32242.0,32241.0,0.14033567]
[1609748798399,0.26200567,32242.0,32195.0,2.45418667]
[1609748798599,0.26200567,32242.0,32209.0,3.6461]
[1609748799600,0.12167,32242.0,32214.0,0.14033567]
[1609748801402,0.12167,32242.0,32209.0,3.6461]
[1609748801602,0.14033567,32210.0,32209.0,3.6461]
[1609748801802,0.14033567,32210.0,32197.0,0.10675]
[1609748803603,0.1103,32213.0,32209.0,0.14033567]
[1609748804003,0.1103,32213.0,32212.0,3.6867]
[1609748804302,0.1103,32213.0,32209.0,0.14033567]
[1609748806605,0.14033567,32217.0,32209.0,0.14033567]
[1609748807205,0.14033567,32217.0,32210.0,3.6649]
[1609748807605,0.13478,32220.0,32216.0,0.14033567]
[1609748808008,0.279,32260.0,32219.0,4.56]
[1609748808205,0.2736,32259.0,32216.0,0.14033567]
[1609748808407,5.1145,32255.0,32216.0,0.14033567]
[1609748809611,0.14033567,32217.0,32216.0,0.14033567]
[1609748809811,0.14033567,32217.0,32197.0,0.10675]
[1609748810013,0.25501567,32217.0,32197.0,4.08]
[1609748810812,0.25501567,32217.0,32174.0,2.09241222]
[1609748811013,0.25501567,32217.0,32200.0,3.7154]
[1609748811411,0.25501567,32217.0,32196.0,0.11552]
[1609748811611,0.11468,32217.0,32202.0,0.14033567]
[1609748812013,0.11468,32217.0,32196.0,0.11552]
[1609748812219,0.11468,32217.0,32193.0,4.6441]
[1609748812712,4.8483,32211.0,32169.0,0.1771]
[1609748813117,0.11468,32217.0,32169.0,0.1771]
[1609748813316,0.11468,32217.0,32169.0,0.28091]
[1609748813317,4.7866,32195.0,32169.0,0.28091]
[1609748813515,0.11468,32217.0,32181.0,0.14033567]
[1609748813716,0.11468,32217.0,32169.0,0.10381]
[1609748813918,4.4417,32175.0,32169.0,0.10381]
[1609748814117,4.59541,32175.0,32169.0,0.10381]
[1609748814318,4.59541,32175.0,32153.0,0.1771]
[1609748814817,0.15371,32175.0,32153.0,0.1771]
[1609748815621,0.15371,32175.0,32170.0,0.14033567]
[1609748817620,0.15371,32175.0,32174.0,0.14033567]
[1609748818522,0.12632,32187.0,32174.0,0.14033567]
[1609748818923,0.2894,32220.0,32174.0,0.14033567]
[1609748819523,0.2894,32220.0,32174.0,4.49353567]
[1609748819722,0.2894,32220.0,32201.0,0.14033567]
[1609748820829,0.2894,32220.0,32174.0,4.3532]
[1609748821027,0.39074,32220.0,32173.0,0.1771]
[1609748821228,5.1198,32206.0,32172.0,0.11328]
[1609748821428,5.27767,32206.0,32172.0,0.11328]
[1609748821631,5.27767,32206.0,32186.0,0.14033567]
[1609748822730,5.27767,32206.0,32173.0,0.1771]
[1609748823932,5.27767,32206.0,32178.0,0.14033567]
[1609748824833,5.27767,32206.0,32173.0,0.1771]
[1609748825034,5.27767,32206.0,32164.0,0.1209]
[1609748825235,0.15787,32206.0,32164.0,0.1209]
[1609748825435,5.204,32190.0,32164.0,0.1209]
[1609748825634,5.30263,32190.0,32164.0,0.1209]
[1609748825937,0.14033567,32165.0,32164.0,0.1209]
[1609748826536,0.14033567,32165.0,32158.0,0.1771]
[1609748827940,0.14033567,32159.0,32158.0,0.1771]
[1609748828140,0.14033567,32159.0,32152.0,0.14033567]
[1609748828542,0.14033567,32159.0,32140.0,0.1771]
[1609748830043,0.14548,32168.0,32152.0,0.14033567]
[1609748831948,0.14033567,32173.0,32167.0,0.14033567]
[1609748832148,0.14033567,32173.0,32155.0,0.12217]
[1609748832350,3.6144,32172.0,32155.0,0.12217]
[1609748833552,3.6144,32172.0,32146.0,0.15492]
[1609748833953,3.6144,32172.0,32159.0,0.14033567]
[1609748835053,3.6144,32172.0,32146.0,0.15492]
[1609748835254,0.10918,32175.0,32146.0,0.15492]
[1609748835454,0.10918,32175.0,32144.0,4.2899]
[1609748835655,0.11224,32175.0,32145.0,0.15466]
[1609748835955,0.11224,32175.0,32155.0,0.14033567]
[1609748837055,3.5936,32170.0,32155.0,0.14033567]
[1609748837956,0.14033567,32158.0,32155.0,0.14033567]
[1609748842862,0.10837,32167.0,32155.0,0.14033567]
[1609748843064,0.11224,32175.0,32155.0,0.14033567]
[1609748843265,4.6561,32183.0,32155.0,0.79923567]
[1609748843465,0.2997,32189.0,32155.0,0.14033567]
[1609748843666,3.8568,32210.0,32162.0,3.8798]
[1609748843868,3.8568,32210.0,32163.0,0.1771]
[1609748844068,0.14033567,32187.0,32186.0,0.14033567]
[1609748844268,0.26876567,32187.0,32186.0,0.14033567]
[1609748845368,0.26876567,32187.0,32163.0,0.1771]
[1609748845570,0.26876567,32187.0,32170.0,5.0387]
[1609748845969,0.12843,32187.0,32170.0,5.0387]
[1609748846469,0.12843,32187.0,32169.0,0.13367]
[1609748847069,0.12843,32187.0,32163.0,0.1771]
[1609748847672,0.12843,32187.0,32159.0,0.15975]
[1609748848071,0.14033567,32161.0,32160.0,0.14033567]
[1609748851778,0.14033567,32161.0,32146.0,0.1771]
[1609748851978,3.5703,32166.0,32155.0,0.14033567]
[1609748852178,0.5732,32160.0,32155.0,0.14033567]
[1609748853784,0.15444,32172.0,32155.0,0.14033567]
[1609748853985,0.2709,32186.0,32164.0,0.14033567]
[1609748854287,5.31543,32187.0,32164.0,0.14033567]
[1609748854886,0.12843,32187.0,32164.0,0.14033567]
[1609748855288,0.5856,32204.0,32164.0,0.14033567]
[1609748855687,3.9801,32188.0,32164.0,0.14033567]
[1609748855888,4.10074,32188.0,32164.0,0.14033567]
[1609748856091,4.10074,32188.0,32171.0,0.14033567]
[1609748856290,4.10074,32188.0,32153.0,0.15725]
[1609748858094,0.12064,32188.0,32162.0,0.14033567]
[1609748858292,4.247,32179.0,32162.0,0.14033567]
[1609748858792,4.37822,32179.0,32162.0,0.14033567]
[1609748859994,0.14033567,32163.0,32162.0,0.14033567]
[1609748860394,0.14033567,32163.0,32153.0,0.15725]
[1609748860594,0.14033567,32163.0,32145.0,0.15466]
[1609748860995,0.14033567,32163.0,32142.0,0.1771]
[1609748861796,4.8462,32161.0,32142.0,0.1771]
[1609748861998,4.8462,32161.0,32155.0,0.14033567]
[1609748863497,0.15692,32167.0,32155.0,0.14033567]
[1609748863998,0.14033567,32156.0,32155.0,0.14033567]
[1609748868010,0.14033567,32163.0,32155.0,0.14033567]
[1609748870005,0.14033567,32156.0,32155.0,0.14033567]
[1609748870607,0.14033567,32156.0,32142.0,0.1771]
[1609748871006,4.35315,32160.0,32142.0,0.1771]
[1609748871809,0.11735,32160.0,32142.0,0.1771]
[1609748872009,0.14033567,32143.0,32142.0,0.1771]
[1609748872409,5.24343567,32143.0,32141.0,0.11931]
[1609748872608,0.14033567,32143.0,32141.0,0.11931]
[1609748873409,0.14033567,32143.0,32118.0,0.1771]
[1609748874211,5.00897,32145.0,32125.0,0.14033567]
[1609748874411,5.00897,32145.0,32125.0,0.14926]
[1609748875413,0.14357,32145.0,32123.0,0.12954]
[1609748875613,3.9782,32126.0,32123.0,0.12954]
[1609748876015,0.14033567,32124.0,32123.0,0.12954]
[1609748876617,0.14033567,32124.0,32108.0,0.14033567]
[1609748876918,0.14033567,32124.0,32106.0,2.10366886]
[1609748877118,0.14033567,32124.0,32098.0,0.1771]
[1609748878020,0.14033567,32120.0,32114.0,0.14033567]
[1609748879422,0.14108,32127.0,32114.0,0.25408567]
[1609748880124,0.14108,32127.0,32126.0,0.14033567]
[1609748882025,0.10373,32135.0,32126.0,0.14033567]
[1609748882224,0.78673567,32127.0,32126.0,0.14033567]
[1609748882426,0.78673567,32127.0,32114.0,0.11375]
[1609748882625,0.23719567,32127.0,32114.0,0.11375]
[1609748882825,5.2171,32117.0,32114.0,0.11375]
[1609748883427,5.2171,32117.0,32097.0,2.10721297]
[1609748884126,5.2171,32117.0,32103.0,0.14033567]
[1609748885326,5.2171,32117.0,32099.0,0.1472]
[1609748885528,0.15454,32120.0,32099.0,0.1472]
[1609748885728,3.5392,32111.0,32099.0,0.1472]
[1609748885928,0.15454,32120.0,32099.0,0.1472]
[1609748886129,3.7586,32114.0,32106.0,0.14033567]
[1609748886629,3.7586,32114.0,32092.0,0.11752]
[1609748887730,0.15454,32120.0,32092.0,0.11752]
[1609748888130,5.0662,32108.0,32106.0,0.14033567]
[1609748888331,5.17594,32108.0,32106.0,0.14033567]
[1609748889533,0.10974,32108.0,32106.0,0.14033567]
[1609748890136,0.14033567,32107.0,32100.0,0.14033567]
[1609748892135,0.14033567,32107.0,32092.0,0.11752]
[1609748892136,0.14033567,32107.0,32106.0,0.14033567]
[1609748892935,5.30683567,32107.0,32106.0,0.14033567]
[1609748893338,5.30683567,32107.0,32092.0,0.11752]
[1609748893537,5.30683567,32107.0,32082.0,0.1771]
[1609748894138,5.1665,32107.0,32100.0,0.14033567]
[1609748895238,0.10974,32108.0,32100.0,0.14033567]
[1609748895439,0.15454,32120.0,32100.0,0.14033567]
[1609748895638,4.6637,32126.0,32100.0,0.14033567]
[1609748896040,1.0,32157.0,32088.0,0.1438]
[1609748896240,4.88736,32113.0,32096.0,0.14033567]
[1609748896740,0.12096,32113.0,32096.0,0.14033567]
[1609748898142,0.12096,32113.0,32112.0,0.14033567]
[1609748900342,0.26129567,32113.0,32112.0,0.14033567]
[1609748900542,0.26129567,32113.0,32101.0,4.3843]
[1609748902245,0.12096,32113.0,32108.0,0.14033567]
[1609748902443,0.296,32139.0,32108.0,0.14033567]
[1609748903946,0.5476,32138.0,32108.0,0.14033567]
[1609748904145,0.11503,32138.0,32096.0,0.10064]
[1609748904345,0.14033567,32109.0,32103.0,0.14033567]
[1609748906348,0.14033567,32109.0,32108.0,0.14033567]
[1609748908051,0.15762,32113.0,32108.0,0.14033567]
[1609748908251,0.15762,32113.0,32112.0,0.14033567]
[1609748908451,0.14033567,32124.0,32112.0,0.14033567]
[1609748909253,0.11503,32138.0,32112.0,0.14033567]
[1609748909453,4.3287,32159.0,32112.0,0.14033567]
[1609748910355,0.2909,32160.0,32137.0,0.14033567]
[1609748910755,2.42152277,32174.0,32137.0,0.14033567]
[1609748911557,0.2952,32176.0,32137.0,0.14033567]
[1609748911755,2.42891961,32182.0,32137.0,0.14033567]
[1609748912156,5.1326,32168.0,32137.0,0.14033567]
[1609748912356,0.14033567,32149.0,32148.0,0.14033567]
[1609748913357,1.567e-05,32151.0,32148.0,0.14033567]
[1609748913758,0.16024,32168.0,32148.0,0.14033567]
[1609748914358,0.16024,32168.0,32167.0,0.14033567]
[1609748915559,0.16024,32168.0,32150.0,4.39011]
[1609748916160,0.16024,32168.0,32150.0,4.2681]
[1609748916360,0.16024,32168.0,32167.0,0.14033567]
[1609748917361,0.14033567,32173.0,32167.0,0.14033567]
[1609748917761,0.2856,32191.0,32167.0,0.14033567]
[1609748917964,2.42911093,32201.0,32167.0,0.14033567]
[1609748918364,2.42911093,32201.0,32186.0,0.14033567]
[1609748918865,0.2924,32205.0,32186.0,0.14033567]
[1609748920365,0.14033567,32187.0,32186.0,0.14033567]
[1609748920567,0.26095567,32187.0,32186.0,0.14033567]
[1609748920966,0.26095567,32187.0,32150.0,0.1202]
[1609748922367,0.12062,32187.0,32180.0,0.14033567]
[1609748922569,0.12062,32187.0,32155.0,0.15296]
[1609748924368,0.12062,32187.0,32184.0,0.14033567]
[1609748925569,0.2924,32205.0,32184.0,0.14033567]
[1609748926369,0.14033567,32192.0,32190.0,0.14033567]
[1609748926771,0.29344567,32192.0,32190.0,0.14033567]
[1609748928175,0.29344567,32192.0,32179.0,4.4577]
[1609748928375,0.15311,32192.0,32188.0,0.14033567]
[1609748930274,0.14033567,32189.0,32188.0,0.14033567]
[1609748930776,0.15311,32192.0,32179.0,4.4577]
[1609748931780,0.2924,32205.0,32179.0,4.4577]
[1609748932280,0.2924,32205.0,32188.0,0.14033567]
[1609748934284,0.14033567,32189.0,32188.0,0.14033567]
[1609748934585,0.29081567,32189.0,32188.0,0.14033567]
[1609748939292,0.15048,32189.0,32188.0,0.14033567]
[1609748939693,0.11403,32189.0,32188.0,0.14033567]
[1609748940992,0.09915,32196.0,32188.0,0.14033567]
[1609748942499,0.09915,32196.0,32195.0,0.14033567]
[1609748943396,0.14033567,32207.0,32195.0,0.14033567]
[1609748944397,4.5193,32214.0,32202.0,0.14033567]
[1609748944597,4.5193,32214.0,32179.0,0.09915]
[1609748944799,4.66897,32214.0,32179.0,0.09915]
[1609748944997,4.66897,32214.0,32177.0,4.806]
[1609748946401,4.66897,32214.0,32189.0,0.14033567]
[1609748947000,0.14967,32214.0,32169.0,0.15776]
[1609748947200,0.14967,32214.0,32162.0,0.10837]
[1609748947201,4.9681,32202.0,32162.0,0.10837]
[1609748947402,5.08607,32202.0,32159.0,4.2121]
[1609748948401,0.11797,32202.0,32165.0,0.14033567]
[1609748948602,0.11797,32202.0,32165.0,0.27074567]
[1609748948802,3.9788,32189.0,32165.0,0.27074567]
[1609748949104,4.11093,32189.0,32165.0,0.27074567]
[1609748949304,4.11093,32189.0,32165.0,0.13041]
[1609748949705,4.11093,32189.0,32146.0,4.3975]
[1609748950505,4.11093,32189.0,32168.0,0.14033567]
[1609748952207,4.11093,32189.0,32149.0,0.09879]
[1609748952410,0.14033567,32157.0,32156.0,0.14033567]
[1609748952809,0.29149567,32157.0,32156.0,0.14033567]
[1609748953209,0.29149567,32157.0,32137.0,3.5843]
[1609748954411,0.15116,32157.0,32152.0,0.14033567]
[1609748955811,0.15116,32157.0,32137.0,3.5843]
[1609748956013,4.4567,32155.0,32124.0,0.13113]
[1609748956412,4.4567,32155.0,32136.0,0.14033567]
[1609748956613,4.4567,32155.0,32112.0,3.6158]
[1609748956812,0.15116,32157.0,32099.0,0.2937]
[1609748957013,4.5937,32141.0,32099.0,0.45148]
[1609748957213,4.71061,32141.0,32099.0,0.45148]
[1609748957412,4.71061,32141.0,32099.0,0.15778]
[1609748958415,0.14033567,32127.0,32125.0,0.14033567]
[1609748958615,0.25956567,32127.0,32125.0,0.14033567]
[1609748960617,0.11923,32127.0,32125.0,0.14033567]
[1609748963119,0.14415,32134.0,32125.0,0.14033567]
[1609748964420,0.11691,32141.0,32133.0,0.14033567]
[1609748964821,0.2704,32186.0,32133.0,0.14033567]
[1609748965021,4.0789,32184.0,32135.0,4.5413]
[1609748966422,0.14033567,32169.0,32168.0,0.14033567]
[1609748966823,0.26277567,32169.0,32168.0,0.14033567]
[1609748967424,0.12244,32169.0,32168.0,0.14033567]
[1609748970427,0.26277567,32169.0,32168.0,0.14033567]
[1609748971628,0.26277567,32169.0,32145.0,4.8986]
[1609748972029,5.1239,32168.0,32132.0,0.12921]
[1609748972228,5.1239,32168.0,32126.0,0.1771]
[1609748972830,5.1239,32168.0,32156.0,0.14033567]
[1609748974431,5.1239,32168.0,32137.0,0.10706]
[1609748974832,5.1239,32168.0,32144.0,0.14033567]
[1609748975031,5.1239,32168.0,32123.0,4.3131]
[1609748975432,0.12244,32169.0,32108.0,0.1771]
[1609748975633,3.495,32154.0,32108.0,0.1771]
[1609748975833,3.6184,32154.0,32117.0,0.0974]
[1609748976734,3.6184,32154.0,32131.0,0.14033567]
[1609748978739,0.14033567,32132.0,32126.0,0.14033567]
[1609748979339,0.14033567,32132.0,32117.0,0.0974]
[1609748980842,0.14033567,32132.0,32131.0,0.14033567]
[1609748981743,0.2907,32152.0,32131.0,0.14033567]
[1609748982043,0.2907,32152.0,32131.0,0.23985567]
[1609748982745,5.194,32163.0,32131.0,0.23985567]